[Event "26th Abu Dhabi Master 2019"]
[Site "Abu Dhabi"]
[Date "2019.08.02"]
[Round "1.57"]
[White "Krishna C R G"]
[Black "Utsab Chatterjee"]
[Result "1-0"]
[ECO "E06"]
[WhiteElo "2463"]
[BlackElo "2150"]
[Annotator "ChessBase"]
[PlyCount "93"]
[EventDate "2019.08.02"]
[EventType "swiss"]
[EventCountry "UAE"]
[SourceTitle "playchess.com"]
[Source "ChessBase"]
[SourceQuality "1"]
[TimeControl "5400+30"]

1. d4 {[%emt 0:00:00]} d5 {[%emt 0:02:10]} 2. c4 {[%emt 0:00:00]} e6 {[%emt 0:00:26]} 3. Nf3 {[%emt 0:00:00]} Nf6 {[%emt 0:00:33]} 4. g3 {[%emt 0:00:00]} Be7 {[%emt 0:00:23]} 5. Bg2 {[%emt 0:00:00]} O-O {[%emt 0:00:36]} 6. O-O {[%emt 0:00:00]} dxc4 {[%emt 0:00:46]} 7. Qc2 {[%emt 0:00:02]} a6 {[%emt 0:00:13]} 8. a4 {[%emt 0:00:02]} Bd7 {[%emt 0:00:13]} 9. Qxc4 {[%emt 0:00:04]} Bc6 {[%emt 0:00:20]} 10. Bf4 {[%emt 0:00:04]} Bd6 {[%emt 0:00:38]} 11. Qc1 {[%emt 0:00:04]} a5 {[%emt 0:00:40]} 12. Nc3 {[%emt 0:00:48]} Na6 {[%emt 0:03:21]} 13. Rd1 {[%emt 0:04:49]} Qe7 {[%emt 0:02:44]} 14. Bg5 {[%emt 0:06:27]} h6 {[%emt 0:05:18]} 15. Bh4 {[%emt 0:00:49]} Bxf3 {[%emt 0:02:29]} 16. Bxf3 {[%emt 0:05:18]} g5 {[%emt 0:02:49]} 17. Bxg5 {[%emt 0:00:16]} hxg5 {[%emt 0:00:09]} 18. Qxg5+ {[%emt 0:00:06]} Kh8 {[%emt 0:00:24]} 19. Bxb7 {[%emt 0:00:52]} Ra7 {[%emt 0:00:16]} 20. Bg2 {[%emt 0:02:38]} Nb4 {[%emt 0:02:28]} 21. Nb5 {[%emt 0:03:19]} Ra6 {[%emt 0:00:19]} 22. Rac1 {[%emt 0:01:38]} Rb8 {[%emt 0:13:13]} 23. e4 {[%emt 0:35:55]} e5 {[%emt 0:11:56]} 24. dxe5 {[%emt 0:06:22]} Qxe5 {[%emt 0:00:37]} 25. Qxe5 {[%emt 0:08:09]} Bxe5 {[%emt 0:00:02]} 26. f4 {[%emt 0:00:27]} Bxb2 {[%emt 0:01:35]} 27. Rxc7 {[%emt 0:00:30]} Ng4 {[%emt 0:01:57]} 28. Bf3 {[%emt 0:04:42]} Ne3 {[%emt 0:01:03]} 29. Rd2 {[%emt 0:04:31]} Bg7 {[%emt 0:02:59]} 30. Kf2 {[%emt 0:00:41]} Nec2 {[%emt 0:01:04]} 31. Bd1 {[%emt 0:09:01]} Na1 {[%emt 0:00:51]} 32. Rxf7 {[%emt 0:00:05]} Rc6 {[%emt 0:02:27]} 33. e5 {[%emt 0:00:21]} Rf8 {[%emt 0:00:37]} 34. Re7 {[%emt 0:02:32]} Rc5 {[%emt 0:00:31]} 35. Bf3 {[%emt 0:05:58]} Nb3 {[%emt 0:11:22]} 36. Rdd7 {[%emt 0:00:02]} Rc2+ {[%emt 0:00:10]} 37. Kg1 {[%emt 0:00:03]} Rg8 {[%emt 0:06:00]} 38. Nd6 {[%emt 0:00:35]} Nc5 {[%emt 0:00:55]} 39. Nf7+ {[%emt 0:01:01]} Kh7 {[%emt 0:00:02]} 40. Ng5+ {[%emt 0:00:16]} Kh8 {[%emt 0:01:33]} 41. Nf7+ {[%emt 0:01:27]} Kh7 {[%emt 0:00:01]} 42. Bg4 {[%emt 0:00:15]} Rb8 {[%emt 0:00:43]} 43. Ng5+ {[%emt 0:00:49]} Kh8 {[%emt 0:00:05]} 44. Rxg7 {[%emt 0:00:17]} Nxd7 {[%emt 0:00:33]} 45. Rh7+ {[%emt 0:00:05]} Kg8 {[%emt 0:00:10]} 46. Be6+ {[%emt 0:00:05]} Kf8 {[%emt 0:00:06]} 47. Rf7+ {[%emt 0:00:10]} 1-0

[Event "26th Abu Dhabi Master 2019"]
[Site "Abu Dhabi"]
[Date "2019.08.02"]
[Round "1.58"]
[White "Mohamed, Faisal"]
[Black "Akash Pc, Iyer"]
[Result "0-1"]
[ECO "A10"]
[WhiteElo "2150"]
[BlackElo "2441"]
[Annotator "NA"]
[PlyCount "59"]
[EventDate "2019.08.02"]
[EventType "swiss"]
[EventCountry "UAE"]
[SourceTitle "playchess.com"]
[Source "ChessBase"]
[SourceQuality "1"]
[TimeControl "5400+30"]

1. c4 d5 2. e3 Nf6 3. b3 e6 4. Nf3 Bd6 {[%emt 0:04:15]} 5. Bb2 {[%emt 0:04:59]} Nbd7 {[%emt 0:00:44]} 6. Nc3 {[%emt 0:00:42]} c6 {[%emt 0:01:25]} 7. Qc2 {[%emt 0:00:54]} Qe7 {[%emt 0:16:24]} 8. Rg1 {[%emt 0:00:30]} dxc4 {[%emt 0:23:40]} 9. bxc4 {[%emt 0:16:43]} e5 {[%emt 0:06:24]} 10. h3 {[%emt 0:08:51]} Ba3 {[%emt 0:06:52]} 11. Bxa3 {[%emt 0:02:25]} Qxa3 {[%emt 0:00:08]} 12. g4 {[%emt 0:05:20]} O-O {[%emt 0:03:52]} 13. h4 {[%emt 0:10:45]} Qe7 {[%emt 0:04:00]} 14. Be2 {[%emt 0:19:43]} e4 {[%emt 0:00:30]} 15. Nd4 {[%emt 0:00:30]} Nc5 {[%emt 0:03:30]} 16. g5 {[%emt 0:03:55]} Ne8 {[%emt 0:01:09]} 17. Nb3 {[%emt 0:00:29]} Bf5 {[%emt 0:02:52]} 18. Nd4 {[%emt 0:09:42]} Nd6 {[%emt 0:07:35]} 19. Rb1 {[%emt 0:00:43]} Bd7 {[%emt 0:01:10]} 20. Qb2 {[%emt 0:05:14]} f5 {[%emt 0:01:04]} 21. Qa3 {[%emt 0:03:21]} b6 {[%emt 0:00:16]} 22. Nb3 {[%emt 0:00:53]} Ndb7 {[%emt 0:00:20]} 23. Kd1 {[%emt 0:01:33]} Qe5 {[%emt 0:02:16]} 24. Kc2 {[%emt 0:00:47]} f4 {[%emt 0:00:09]} 25. Rbe1 {[%emt 0:03:54]} f3 {[%emt 0:00:23]} 26. Bd1 {[%emt 0:00:31]} Nd3 {[%emt 0:00:06]} 27. Kb1 {[%emt 0:00:24]} Nxe1 {[%emt 0:00:38]} 28. Nd4 {[%emt 0:00:00]} c5 {[%emt 0:00:00]} 29. Ndb5 {[%emt 0:00:05]} Bxb5 {[%emt 0:00:03]} 30. Nxb5 {[%emt 0:00:31]} 0-1

[Event "26th Abu Dhabi Master 2019"]
[Site "Abu Dhabi"]
[Date "2019.08.02"]
[Round "1.59"]
[White "Lee, Jun Hyeok"]
[Black "Chitlange Sakshi"]
[Result "1-0"]
[ECO "A13"]
[WhiteElo "2383"]
[BlackElo "2168"]
[Annotator "NA"]
[PlyCount "57"]
[EventDate "2019.08.02"]
[EventType "swiss"]
[EventCountry "UAE"]
[SourceTitle "playchess.com"]
[Source "ChessBase"]
[SourceQuality "1"]
[TimeControl "5400+30"]

1. c4 e6 2. e4 d5 3. cxd5 exd5 4. exd5 Nf6 5. Nc3 Nxd5 6. Nf3 Be7 7. d4 O-O 8. Bd3 Nc6 9. O-O Ncb4 10. Bc4 Bf5 11. a3 Nb6 12. Bb3 N4d5 13. Re1 Bf6 14. Ne5 c6 15. Qf3 Be6 16. Ne4 Be7 17. Bc2 Nf6 18. Bg5 Nxe4 19. Qxe4 g6 20. Bh6 Re8 21. Re3 Bd5 22. Qf4 Nc4 23. Nxc4 Bxc4 24. Rae1 Be6 25. Rxe6 fxe6 26. Rxe6 Bh4 27. Qe5 Bxf2+ 28. Kh1 Bxd4 29. Bb3 1-0

[Event "26th Abu Dhabi Master 2019"]
[Site "Abu Dhabi"]
[Date "2019.08.02"]
[Round "1.60"]
[White "Ilyasli, Ughur"]
[Black "Socko, Monika"]
[Result "0-1"]
[ECO "E52"]
[WhiteElo "2104"]
[BlackElo "2443"]
[Annotator "NA"]
[PlyCount "142"]
[EventDate "2019.08.02"]
[EventType "swiss"]
[EventCountry "UAE"]
[SourceTitle "playchess.com"]
[Source "ChessBase"]
[SourceQuality "1"]
[TimeControl "5400+30"]

1. d4 {[%emt 0:00:00]} Nf6 {[%emt 0:00:00]} 2. Nf3 {[%emt 0:00:00]} e6 {[%emt 0:00:00]} 3. c4 {[%emt 0:00:00]} Bb4+ {[%emt 0:00:19]} 4. Nc3 {[%emt 0:05:27]} O-O {[%emt 0:00:24]} 5. e3 {[%emt 0:00:31]} d5 {[%emt 0:00:33]} 6. Bd3 {[%emt 0:01:39]} b6 {[%emt 0:05:54]} 7. cxd5 {[%emt 0:00:35]} exd5 {[%emt 0:01:28]} 8. Bd2 {[%emt 0:03:57]} Ba6 {[%emt 0:03:29]} 9. Bxa6 {[%emt 0:05:59]} Nxa6 {[%emt 0:00:03]} 10. Qa4 {[%emt 0:00:08]} Qc8 {[%emt 0:00:11]} 11. O-O {[%emt 0:09:39]} Re8 {[%emt 0:02:17]} 12. Rac1 {[%emt 0:06:33]} Bf8 {[%emt 0:03:22]} 13. Ne2 {[%emt 0:07:37]} c5 {[%emt 0:04:22]} 14. dxc5 {[%emt 0:07:41]} Nxc5 {[%emt 0:01:55]} 15. Qd1 {[%emt 0:02:14]} Qa6 {[%emt 0:02:36]} 16. a3 {[%emt 0:02:44]} Nd3 {[%emt 0:01:49]} 17. Rc2 {[%emt 0:01:22]} Rac8 {[%emt 0:04:48]} 18. Nc1 {[%emt 0:03:09]} Ne4 {[%emt 0:07:29]} 19. Nxd3 {[%emt 0:04:00]} Qxd3 {[%emt 0:00:21]} 20. Bc3 {[%emt 0:00:09]} Qxd1 {[%emt 0:02:09]} 21. Rxd1 {[%emt 0:00:05]} Bxa3 {[%emt 0:02:21]} 22. Nd4 {[%emt 0:07:24]} Nxc3 {[%emt 0:05:15]} 23. bxc3 {[%emt 0:00:05]} Bf8 {[%emt 0:00:37]} 24. Ne2 {[%emt 0:02:44]} a5 {[%emt 0:04:21]} 25. Rxd5 {[%emt 0:00:15]} a4 {[%emt 0:00:05]} 26. Kf1 {[%emt 0:01:26]} Bc5 {[%emt 0:04:04]} 27. Ra2 {[%emt 0:06:59]} a3 {[%emt 0:01:25]} 28. Ke1 {[%emt 0:05:18]} g6 {[%emt 0:00:55]} 29. Kd2 {[%emt 0:00:51]} b5 {[%emt 0:02:14]} 30. Nd4 {[%emt 0:03:16]} b4 {[%emt 0:02:46]} 31. cxb4 {[%emt 0:00:05]} Bxb4+ {[%emt 0:00:05]} 32. Kd1 {[%emt 0:00:04]} Bf8 {[%emt 0:04:38]} 33. Nc2 {[%emt 0:00:33]} Ra8 {[%emt 0:01:15]} 34. Rd3 {[%emt 0:01:04]} Re5 {[%emt 0:10:03]} 35. Nd4 {[%emt 0:00:29]} Rh5 {[%emt 0:01:54]} 36. h3 {[%emt 0:00:54]} Rg5 {[%emt 0:00:07]} 37. g3 {[%emt 0:00:55]} h5 {[%emt 0:00:10]} 38. h4 {[%emt 0:00:12]} Rga5 {[%emt 0:00:11]} 39. Kc2 {[%emt 0:00:28]} Rc5+ {[%emt 0:01:41]} 40. Rc3 {[%emt 0:02:39]} Rd5 {[%emt 0:00:47]} 41. Kb1 {[%emt 0:01:38]} Ra6 {[%emt 0:02:25]} 42. Rac2 {[%emt 0:02:38]} Bg7 {[%emt 0:00:14]} 43. Rc4 {[%emt 0:00:14]} Rd7 {[%emt 0:07:40]} 44. Ka2 {[%emt 0:00:17]} Rb7 {[%emt 0:00:29]} 45. R4c3 {[%emt 0:04:20]} Bf8 {[%emt 0:01:07]} 46. Rb3 {[%emt 0:01:11]} Rd7 {[%emt 0:00:37]} 47. Rc8 {[%emt 0:00:46]} Kg7 {[%emt 0:00:01]} 48. Rbb8 {[%emt 0:00:16]} Be7 {[%emt 0:01:04]} 49. Rg8+ {[%emt 0:01:41]} Kf6 {[%emt 0:00:01]} 50. Ra8 {[%emt 0:01:15]} Rb6 {[%emt 0:01:22]} 51. Rgb8 {[%emt 0:00:17]} Rdb7 {[%emt 0:00:30]} 52. Rxb7 {[%emt 0:00:05]} Rxb7 {[%emt 0:00:01]} 53. Nb3 {[%emt 0:00:17]} Rc7 {[%emt 0:00:57]} 54. Kb1 {[%emt 0:01:05]} Bb4 {[%emt 0:02:54]} 55. Ra4 {[%emt 0:01:05]} Be1 {[%emt 0:00:05]} 56. g4 {[%emt 0:00:32]} Kg7 {[%emt 0:01:55]} 57. gxh5 {[%emt 0:00:05]} gxh5 {[%emt 0:00:26]} 58. Rf4 {[%emt 0:00:04]} Kg6 {[%emt 0:01:51]} 59. Nd4 {[%emt 0:01:15]} f6 {[%emt 0:02:08]} 60. Nf5 {[%emt 0:00:43]} Rc5 {[%emt 0:02:33]} 61. Ng3 {[%emt 0:00:06]} Rb5+ {[%emt 0:00:19]} 62. Ka2 {[%emt 0:00:29]} Rb2+ {[%emt 0:00:05]} 63. Kxa3 {[%emt 0:00:03]} Rxf2 {[%emt 0:00:03]} 64. Ne4 {[%emt 0:01:30]} Rxf4 {[%emt 0:00:37]} 65. exf4 {[%emt 0:00:01]} Bxh4 {[%emt 0:00:21]} 66. Kb3 {[%emt 0:00:13]} Kf5 {[%emt 0:00:09]} 67. Nd6+ {[%emt 0:00:26]} Kxf4 {[%emt 0:00:03]} 68. Kc2 {[%emt 0:00:03]} Bg3 {[%emt 0:01:46]} 69. Ne8 {[%emt 0:01:46]} h4 {[%emt 0:00:34]} 70. Nxf6 {[%emt 0:00:04]} h3 {[%emt 0:00:04]} 71. Nd5+ {[%emt 0:00:47]} Kf3 {[%emt 0:00:07]} 0-1

[Event "26th Abu Dhabi Master 2019"]
[Site "Abu Dhabi"]
[Date "2019.08.02"]
[Round "1.61"]
[White "Aditya Mittal"]
[Black "Haase, Pavel"]
[Result "1-0"]
[ECO "A80"]
[WhiteElo "2429"]
[BlackElo "2160"]
[Annotator "NA"]
[PlyCount "79"]
[EventDate "2019.08.02"]
[EventType "swiss"]
[EventCountry "UAE"]
[SourceTitle "playchess.com"]
[Source "ChessBase"]
[SourceQuality "1"]
[TimeControl "5400+30"]

1. d4 {[%emt 0:00:00]} f5 {[%emt 0:00:36]} 2. Bg5 {[%emt 0:00:00]} Nf6 {[%emt 0:03:58]} 3. Bxf6 {[%emt 0:00:02]} exf6 {[%emt 0:00:09]} 4. e3 {[%emt 0:00:06]} d5 {[%emt 0:00:31]} 5. Bd3 {[%emt 0:00:10]} Be6 {[%emt 0:02:07]} 6. Nd2 {[%emt 0:01:27]} Nc6 {[%emt 0:08:32]} 7. c3 {[%emt 0:03:19]} g6 {[%emt 0:07:12]} 8. Ne2 {[%emt 0:03:10]} Bd6 {[%emt 0:02:55]} 9. b4 {[%emt 0:04:36]} O-O {[%emt 0:04:27]} 10. a4 {[%emt 0:06:45]} Qd7 {[%emt 0:04:42]} 11. a5 {[%emt 0:05:10]} Ne7 {[%emt 0:07:09]} 12. Qb3 {[%emt 0:07:31]} b5 {[%emt 0:14:10]} 13. Qc2 {[%emt 0:03:49]} a6 {[%emt 0:04:05]} 14. Nb3 {[%emt 0:02:01]} Rae8 {[%emt 0:07:03]} 15. Nc5 {[%emt 0:00:23]} Bxc5 {[%emt 0:03:28]} 16. dxc5 {[%emt 0:00:09]} Nc6 {[%emt 0:00:15]} 17. O-O-O {[%emt 0:05:45]} Ne5 {[%emt 0:03:52]} 18. Nd4 {[%emt 0:02:44]} Re7 {[%emt 0:02:33]} 19. h3 {[%emt 0:01:56]} Rg7 {[%emt 0:01:46]} 20. Be2 {[%emt 0:01:12]} h5 {[%emt 0:02:48]} 21. Qa2 {[%emt 0:06:24]} Rd8 {[%emt 0:03:32]} 22. Qc2 {[%emt 0:03:04]} Re8 {[%emt 0:00:31]} 23. g3 {[%emt 0:00:45]} c6 {[%emt 0:04:36]} 24. Rdg1 {[%emt 0:02:05]} Kf8 {[%emt 0:02:04]} 25. Re1 {[%emt 0:02:17]} Ke7 {[%emt 0:01:58]} 26. f4 {[%emt 0:02:46]} Nf7 {[%emt 0:00:23]} 27. g4 {[%emt 0:00:48]} hxg4 {[%emt 0:02:22]} 28. hxg4 {[%emt 0:00:01]} fxg4 {[%emt 0:00:54]} 29. e4 {[%emt 0:01:08]} dxe4 {[%emt 0:02:22]} 30. Qxe4 {[%emt 0:00:03]} Kf8 {[%emt 0:00:26]} 31. Bxb5 {[%emt 0:03:04]} Bd5 {[%emt 0:01:06]} 32. Qxe8+ {[%emt 0:01:45]} Qxe8 {[%emt 0:00:02]} 33. Rxe8+ {[%emt 0:00:01]} Kxe8 {[%emt 0:00:01]} 34. Re1+ {[%emt 0:01:17]} Kd7 {[%emt 0:00:14]} 35. Bxa6 {[%emt 0:00:34]} Nd8 {[%emt 0:02:59]} 36. Bd3 {[%emt 0:04:01]} f5 {[%emt 0:01:03]} 37. c4 {[%emt 0:00:42]} Bg2 {[%emt 0:00:13]} 38. a6 {[%emt 0:01:44]} Kc7 {[%emt 0:00:22]} 39. Re8 {[%emt 0:01:09]} Kd7 {[%emt 0:01:32]} 40. Rxd8+ 1-0

[Event "26th Abu Dhabi Master 2019"]
[Site "Abu Dhabi"]
[Date "2019.08.02"]
[Round "1.62"]
[White "Panda Sambit"]
[Black "Laxman, R.R."]
[Result "1/2-1/2"]
[ECO "E15"]
[WhiteElo "2126"]
[BlackElo "2429"]
[Annotator "NA"]
[PlyCount "94"]
[EventDate "2019.08.02"]
[EventType "swiss"]
[EventCountry "UAE"]
[SourceTitle "playchess.com"]
[Source "ChessBase"]
[SourceQuality "1"]
[TimeControl "5400+30"]

1. d4 {[%emt 0:00:00]} Nf6 {[%emt 0:00:00]} 2. c4 {[%emt 0:00:14]} e6 {[%emt 0:00:00]} 3. Nf3 {[%emt 0:00:04]} b6 {[%emt 0:00:00]} 4. g3 {[%emt 0:00:05]} Ba6 {[%emt 0:00:00]} 5. b3 {[%emt 0:00:05]} Bb7 {[%emt 0:00:10]} 6. Bg2 {[%emt 0:00:06]} Bb4+ {[%emt 0:00:05]} 7. Bd2 {[%emt 0:00:03]} c5 {[%emt 0:00:05]} 8. Bxb4 {[%emt 0:00:00]} cxb4 {[%emt 0:00:00]} 9. O-O {[%emt 0:00:00]} O-O {[%emt 0:00:02]} 10. Qd3 {[%emt 0:00:00]} a5 {[%emt 0:00:49]} 11. Nbd2 {[%emt 0:00:24]} d6 {[%emt 0:00:21]} 12. Ne1 {[%emt 0:01:47]} Bxg2 {[%emt 0:01:17]} 13. Nxg2 {[%emt 0:00:12]} Qc7 {[%emt 0:05:32]} 14. e4 {[%emt 0:02:54]} e5 {[%emt 0:03:04]} 15. f4 {[%emt 0:36:11]} exd4 {[%emt 0:06:23]} 16. Qxd4 {[%emt 0:01:37]} Qc5 {[%emt 0:00:10]} 17. Qxc5 {[%emt 0:13:40]} bxc5 {[%emt 0:01:27]} 18. a4 {[%emt 0:02:07]} Nc6 {[%emt 0:03:13]} 19. Nh4 {[%emt 0:02:14]} Rfe8 {[%emt 0:01:58]} 20. Rae1 {[%emt 0:15:05]} Re6 {[%emt 0:00:30]} 21. f5 {[%emt 0:06:45]} Re7 {[%emt 0:00:21]} 22. Rf3 {[%emt 0:01:38]} Ne5 {[%emt 0:12:45]} 23. Rfe3 {[%emt 0:01:08]} Rae8 {[%emt 0:00:05]} 24. h3 {[%emt 0:04:27]} Kf8 {[%emt 0:01:18]} 25. Kg2 {[%emt 0:01:20]} Nc6 {[%emt 0:06:29]} 26. Nhf3 {[%emt 0:01:15]} Nd4 {[%emt 0:04:35]} 27. Nxd4 {[%emt 0:01:44]} cxd4 {[%emt 0:00:54]} 28. Rd3 {[%emt 0:01:21]} Nxe4 {[%emt 0:00:02]} 29. Rxd4 {[%emt 0:00:33]} Nc5 {[%emt 0:00:15]} 30. Rxe7 {[%emt 0:00:57]} Kxe7 {[%emt 0:00:06]} 31. Kf3 {[%emt 0:05:10]} g6 {[%emt 0:00:05]} 32. Ne4 {[%emt 0:01:47]} Nxb3 {[%emt 0:01:06]} 33. f6+ {[%emt 0:00:04]} Kd7 {[%emt 0:00:11]} 34. Rxd6+ {[%emt 0:00:27]} Kc7 {[%emt 0:00:02]} 35. Rd5 {[%emt 0:01:13]} Re6 {[%emt 0:04:17]} 36. Ke3 {[%emt 0:00:48]} h6 {[%emt 0:01:07]} 37. h4 {[%emt 0:00:15]} h5 {[%emt 0:00:23]} 38. Rb5 {[%emt 0:00:47]} Kc6 {[%emt 0:04:07]} 39. Kf4 {[%emt 0:00:23]} Nd4 {[%emt 0:00:25]} 40. Rxa5 {[%emt 0:00:31]} Kb6 {[%emt 0:01:48]} 41. Rd5 {[%emt 0:00:34]} Ne2+ {[%emt 0:04:04]} 42. Kf3 {[%emt 0:00:10]} b3 {[%emt 0:01:33]} 43. Rb5+ {[%emt 0:00:43]} Kc6 {[%emt 0:00:22]} 44. Rc5+ {[%emt 0:00:33]} Kd7 {[%emt 0:00:39]} 45. Rd5+ {[%emt 0:00:33]} Kc6 {[%emt 0:02:59]} 46. Rc5+ {[%emt 0:00:07]} Kd7 {[%emt 0:00:15]} 47. Rd5+ {[%emt 0:00:05]} Kc6 {[%emt 0:00:34]} 1/2-1/2

[Event "26th Abu Dhabi Master 2019"]
[Site "Abu Dhabi"]
[Date "2019.08.02"]
[Round "1.63"]
[White "Dimakiling, Oliver"]
[Black "Ashraf, Artin"]
[Result "1-0"]
[ECO "A34"]
[WhiteElo "2403"]
[BlackElo "2141"]
[Annotator "NA"]
[PlyCount "101"]
[EventDate "2019.08.02"]
[EventType "swiss"]
[EventCountry "UAE"]
[SourceTitle "playchess.com"]
[Source "ChessBase"]
[SourceQuality "1"]
[TimeControl "5400+30"]

1. c4 Nf6 2. Nc3 c5 3. g3 g6 4. Bg2 Bg7 5. Nf3 O-O 6. d4 cxd4 7. Nxd4 Nc6 8. O-O d6 9. e3 Bd7 10. b3 Qc8 11. Re1 Bh3 12. Bh1 h5 13. Bb2 Nxd4 14. exd4 Qd7 15. Qd2 Rfe8 16. a4 Rab8 17. d5 h4 18. Ne4 Nxe4 19. Rxe4 hxg3 20. hxg3 Bf5 21. Bxg7 Kxg7 22. Re3 a6 23. a5 Rh8 24. Bf3 g5 25. Rae1 Rbe8 26. b4 f6 27. Qe2 Kf8 28. c5 Bg6 29. Bg2 Rh7 30. Qc4 Rc8 31. Qc3 Rf7 32. Re6 Bf5 33. Qf3 Bg6 34. cxd6 exd6 35. Rxf6 Qd8 36. Ree6 Rc4 37. Bh3 Rc1+ 38. Kh2 Rxf6 39. Qxf6+ Qxf6 40. Rxf6+ Kg7 41. Rxd6 Rc2 42. Rd7+ Kh6 43. Rxb7 Rxf2+ 44. Kg1 Rf3 45. Rb6 Kg7 46. d6 Rxg3+ 47. Kh2 Rd3 48. d7 Kf7 49. Rxa6 Rd2+ 50. Kg1 Be4 51. Re6 1-0

[Event "26th Abu Dhabi Master 2019"]
[Site "Abu Dhabi"]
[Date "2019.08.02"]
[Round "1.64"]
[White "Tashkhodzhaev, Akram"]
[Black "Suleymanli, Aydin"]
[Result "1/2-1/2"]
[ECO "B19"]
[WhiteElo "2123"]
[BlackElo "2416"]
[Annotator "NA"]
[PlyCount "84"]
[EventDate "2019.08.02"]
[EventType "swiss"]
[EventCountry "UAE"]
[SourceTitle "playchess.com"]
[Source "ChessBase"]
[SourceQuality "1"]
[TimeControl "5400+30"]

1. e4 c6 2. d4 d5 3. Nd2 dxe4 4. Nxe4 Bf5 5. Ng3 Bg6 6. Nf3 Nd7 7. h4 h6 8. h5 Bh7 9. Bd3 Bxd3 10. Qxd3 Ngf6 11. Bf4 Qa5+ 12. Bd2 Qc7 13. O-O-O O-O-O 14. Qe2 e6 15. Ne5 Nb6 16. Ba5 c5 17. Bxb6 axb6 18. dxc5 Bxc5 19. Nd3 Rd5 20. Ne4 Nxe4 21. Qxe4 Be7 22. f4 Bf6 23. g3 Rhd8 24. Nf2 Bd4 25. Qe2 Qc5 26. Ne4 Qa5 27. c3 f5 28. cxd4 fxe4 29. Qc4+ Kb8 30. Kb1 b5 31. Qc3 Qb6 32. Qb4 Rxd4 33. Rxd4 Rxd4 34. Qf8+ Ka7 35. Rc1 Rd3 36. Qxg7 e3 37. Qe5 Rd5 38. Qe4 b4 39. Re1 Qc5 40. Rc1 Qb6 41. Re1 Qc5 42. Rc1 Qb6 1/2-1/2

[Event "26th Abu Dhabi Master 2019"]
[Site "Abu Dhabi"]
[Date "2019.08.02"]
[Round "1.65"]
[White "Sammed Jaykumar, Shete"]
[Black "Wang, Shanshan"]
[Result "1-0"]
[ECO "B53"]
[WhiteElo "2416"]
[BlackElo "2122"]
[Annotator "NA"]
[PlyCount "57"]
[EventDate "2019.08.02"]
[EventType "swiss"]
[EventCountry "UAE"]
[SourceTitle "playchess.com"]
[Source "ChessBase"]
[SourceQuality "1"]
[TimeControl "5400+30"]

1. e4 {[%emt 0:00:00]} c5 {[%emt 0:08:05]} 2. Nf3 {[%emt 0:00:00]} d6 {[%emt 0:00:20]} 3. d4 {[%emt 0:00:00]} cxd4 4. Qxd4 Nc6 5. Qe3 Nf6 6. Be2 g6 7. h3 Bg7 8. O-O O-O 9. Rd1 Qc7 10. c4 Nb4 11. Qb3 Nc6 12. Nc3 Na5 13. Qb4 Bd7 14. Be3 Nc6 15. Qa3 b6 16. Rac1 Qb7 17. b4 {[%emt 0:40:22]} Be6 {[%emt 0:45:28]} 18. c5 dxc5 19. Ba6 Qb8 20. bxc5 Ne5 21. Nxe5 Qxe5 22. f4 Qh5 23. e5 Nd7 24. c6 Nxe5 25. fxe5 Bxe5 26. Ne2 Rad8 27. Rxd8 Rxd8 28. Qxe7 Rf8 29. Qg5 1-0

[Event "26th Abu Dhabi Master 2019"]
[Site "Abu Dhabi"]
[Date "2019.08.02"]
[Round "1.66"]
[White "Mahdian, Anousha"]
[Black "Sankalp Gupta"]
[Result "1-0"]
[ECO "E32"]
[WhiteElo "2118"]
[BlackElo "2416"]
[Annotator "NA"]
[PlyCount "63"]
[EventDate "2019.08.02"]
[EventType "swiss"]
[EventCountry "UAE"]
[SourceTitle "playchess.com"]
[Source "ChessBase"]
[SourceQuality "1"]
[TimeControl "5400+30"]

1. d4 Nf6 2. c4 e6 3. Nc3 Bb4 4. Qc2 b6 5. e4 c5 6. d5 Qe7 7. Nge2 exd5 8. exd5 O-O 9. Bd2 {[%emt 0:07:02]} d6 {[%emt 0:11:18]} 10. f3 {[%emt 0:00:27]} a6 {[%emt 0:01:08]} 11. O-O-O {[%emt 0:01:40]} Nbd7 {[%emt 0:16:06]} 12. Ng3 {[%emt 0:26:30]} Re8 {[%emt 0:00:39]} 13. Nf5 {[%emt 0:03:53]} Qf8 {[%emt 0:00:06]} 14. g4 {[%emt 0:11:47]} Ne5 {[%emt 0:01:40]} 15. Be2 {[%emt 0:00:09]} b5 {[%emt 0:01:21]} 16. Ne3 {[%emt 0:01:29]} Bb7 {[%emt 0:11:26]} 17. Rhf1 {[%emt 0:11:58]} bxc4 {[%emt 0:04:01]} 18. g5 {[%emt 0:01:03]} Nd3+ {[%emt 0:02:15]} 19. Bxd3 {[%emt 0:00:03]} cxd3 {[%emt 0:00:09]} 20. Qxd3 {[%emt 0:00:07]} Nd7 {[%emt 0:00:15]} 21. Nc4 {[%emt 0:01:03]} Ne5 {[%emt 0:00:30]} 22. Nxe5 {[%emt 0:00:30]} dxe5 {[%emt 0:05:34]} 23. Ne4 {[%emt 0:03:16]} a5 {[%emt 0:05:52]} 24. Qe3 {[%emt 0:03:57]} Red8 {[%emt 0:04:30]} 25. Nf6+ {[%emt 0:06:36]} gxf6 {[%emt 0:04:07]} 26. gxf6 {[%emt 0:00:02]} Kh8 {[%emt 0:00:44]} 27. Rg1 {[%emt 0:00:06]} Ra6 {[%emt 0:03:18]} 28. Qg5 {[%emt 0:06:21]} Bxd2+ {[%emt 0:03:35]} 29. Rxd2 {[%emt 0:00:30]} h6 {[%emt 0:00:30]} 30. Qxe5 {[%emt 0:00:30]} Qd6 {[%emt 0:00:30]} 31. Qe7 {[%emt 0:00:30]} Rb6 {[%emt 0:00:30]} 32. Rg6 {[%emt 0:00:30]} 1-0

[Event "26th Abu Dhabi Master 2019"]
[Site "Abu Dhabi"]
[Date "2019.08.02"]
[Round "1.67"]
[White "Vaishali R"]
[Black "Davainis, Marius"]
[Result "1-0"]
[ECO "B01"]
[WhiteElo "2344"]
[BlackElo "2105"]
[Annotator "NA"]
[PlyCount "53"]
[EventDate "2019.08.02"]
[EventType "swiss"]
[EventCountry "UAE"]
[SourceTitle "playchess.com"]
[Source "ChessBase"]
[SourceQuality "1"]
[TimeControl "5400+30"]

1. e4 d5 2. exd5 Nf6 3. d4 Nxd5 4. c4 Nb6 5. Nc3 g6 6. c5 Nd5 7. Bc4 Nxc3 8. Qf3 e6 9. bxc3 Bg7 10. Ne2 O-O 11. h4 h6 12. Qg3 c6 13. h5 g5 14. f4 Bf6 15. O-O b6 16. fxg5 Bxg5 17. Nf4 Qc7 18. Qf3 Qe7 19. Nh3 Bxc1 20. Raxc1 Ba6 21. Qg3+ Kh8 22. Qe3 Kg7 23. Qe5+ Kh7 24. Bxa6 Nxa6 25. Rf6 Rh8 26. Rcf1 Raf8 27. Ng5+ 1-0